[Event "7° Rencontres Internationales des Echecs Francophones"]
[Site "PARIS, France"]
[Date "2019.08.10"]
[Round "3.6"]
[White "Leconte, Maria"]
[Black "Ider, Borya"]
[Result "0-1"]
[TimeControl "90'+30' + 30seconds/move"]
[WhiteElo "2201"]
[BlackElo "2492"]

1. e4 {[%clk 00:05:05]} {[%emt 00:14:32]} e6 {[%clk 00:05:05]} 2. d4 {[%clk
00:05:07]} {[%emt 00:00:02]} d5 {[%clk 00:05:07]} 3. Nc3 {[%clk 00:05:09]} Bb4
{[%clk 00:05:08]} {[%emt 00:00:04]} 4. e5 {[%clk 00:05:03]} {[%emt 00:00:09]}
c5 {[%clk 00:05:08]} {[%emt 00:00:02]} 5. a3 {[%clk 00:05:05]} {[%emt
00:00:02]} Bxc3+ {[%clk 00:05:10]} {[%emt 00:00:01]} 6. bxc3 {[%clk 00:05:07]}
Qa5 {[%clk 00:05:10]} {[%emt 00:00:02]} 7. Bd2 {[%clk 00:05:06]} {[%emt
00:00:03]} Qa4 {[%clk 00:05:12]} {[%emt 00:00:01]} 8. Nf3 {[%clk 00:05:02]}
{[%emt 00:00:08]} Nc6 {[%clk 00:05:11]} {[%emt 00:00:04]} 9. Be2 {[%clk
00:05:01]} {[%emt 00:00:03]} c4 {[%clk 00:05:09]} {[%emt 00:00:06]} 10. O-O
{[%clk 00:05:02]} {[%emt 00:00:03]} Nge7 {[%clk 00:05:10]} {[%emt 00:00:02]} 11.
Ng5 {[%clk 00:04:52]} {[%emt 00:00:12]} h6 {[%clk 00:05:10]} {[%emt 00:00:03]}
12. Nh3 {[%clk 00:04:54]} Bd7 {[%clk 00:05:12]} 13. f4 {[%clk 00:04:53]} {[%emt
00:00:05]} O-O-O {[%clk 00:05:13]} {[%emt 00:00:02]} 14. Qb1 {[%clk 00:04:43]}
{[%emt 00:00:13]} Rdf8 {[%clk 00:05:13]} {[%emt 00:00:02]} 15. Nf2 {[%clk
00:04:37]} {[%emt 00:00:09]} f6 {[%clk 00:05:12]} {[%emt 00:00:04]} 16. Nd1
{[%clk 00:04:37]} {[%emt 00:00:04]} Nf5 {[%clk 00:05:03]} {[%emt 00:00:11]} 17.
Ne3 {[%clk 00:04:28]} {[%emt 00:00:13]} Nce7 {[%clk 00:04:48]} {[%emt
00:00:18]} 18. Qb4 {[%clk 00:04:24]} {[%emt 00:00:07]} Qxb4 {[%clk 00:04:46]}
{[%emt 00:00:05]} 19. axb4 {[%clk 00:04:24]} {[%emt 00:00:03]} a6 {[%clk
00:04:47]} {[%emt 00:00:02]} 20. Nxf5 {[%clk 00:03:46]} {[%emt 00:00:41]} Nxf5
{[%clk 00:04:48]} {[%emt 00:00:02]} 21. Bg4 {[%clk 00:03:26]} {[%emt 00:00:23]}
Ne7 {[%clk 00:04:47]} {[%emt 00:00:03]} 22. Rfe1 {[%clk 00:03:05]} {[%emt
00:00:24]} f5 {[%clk 00:04:46]} {[%emt 00:00:04]} 23. Bf3 {[%clk 00:03:02]}
{[%emt 00:00:06]} Rfg8 {[%clk 00:04:33]} {[%emt 00:00:16]} 24. h4 {[%clk
00:03:02]} {[%emt 00:00:04]} Kc7 {[%clk 00:04:08]} {[%emt 00:00:28]} 25. Kf2
{[%clk 00:03:02]} {[%emt 00:00:02]} Ra8 {[%clk 00:03:47]} {[%emt 00:00:25]} 26.
Ra2 {[%clk 00:02:52]} {[%emt 00:00:14]} b6 {[%clk 00:03:28]} {[%emt 00:00:22]}
27. Rea1 {[%clk 00:02:53]} {[%emt 00:00:01]} Bb5 {[%clk 00:03:30]} {[%emt
00:00:02]} 28. Rb1 {[%clk 00:02:41]} {[%emt 00:00:15]} Bd7 {[%clk 00:03:25]}
{[%emt 00:00:08]} 29. Rba1 {[%clk 00:02:43]} Kb7 {[%clk 00:03:27]} 30. g3
{[%clk 00:02:37]} {[%emt 00:00:09]} Nc6 {[%clk 00:03:24]} {[%emt 00:00:05]} 31.
Bc1 {[%clk 00:02:24]} {[%emt 00:00:17]} Ra7 {[%clk 00:03:22]} {[%emt 00:00:05]}
32. Ba3 {[%clk 00:02:04]} {[%emt 00:00:23]} Rha8 {[%clk 00:03:07]} {[%emt
00:00:17]} 33. Rb1 {[%clk 00:01:55]} {[%emt 00:00:13]} b5 {[%clk 00:03:00]}
{[%emt 00:00:10]} 34. Rab2 {[%clk 00:01:48]} {[%emt 00:00:10]} Nd8 {[%clk
00:02:42]} {[%emt 00:00:20]} 35. Bh5 {[%clk 00:01:48]} {[%emt 00:00:03]} Nc6
{[%clk 00:02:28]} {[%emt 00:00:17]} 36. Rg1 {[%clk 00:01:47]} {[%emt 00:00:04]}
Rf8 {[%clk 00:02:29]} {[%emt 00:00:03]} 37. Ke3 {[%clk 00:01:49]} {[%emt
00:00:02]} Ne7 {[%clk 00:02:27]} {[%emt 00:00:04]} 38. Bf3 {[%clk 00:01:33]}
{[%emt 00:00:19]} Kc6 {[%clk 00:02:26]} {[%emt 00:00:04]} 39. h5 {[%clk
00:01:32]} {[%emt 00:00:03]} Rf7 {[%clk 00:02:24]} {[%emt 00:00:06]} 40. Be2
{[%clk 00:01:32]} {[%emt 00:00:03]} Ra8 {[%clk 00:02:23]} {[%emt 00:00:04]} 41.
Rbb1 {[%clk 00:01:31]} {[%emt 00:00:04]} Rg8 {[%clk 00:02:04]} {[%emt
00:00:22]} 42. Ra1 {[%clk 00:01:30]} {[%emt 00:00:04]} Kb6 {[%clk 00:02:03]}
{[%emt 00:00:04]} 43. Bc1 {[%clk 00:01:30]} {[%emt 00:00:03]} Nc6 {[%clk
00:02:03]} {[%emt 00:00:03]} 44. Bd2 {[%clk 00:01:27]} {[%emt 00:00:05]} Be8
{[%clk 00:01:48]} {[%emt 00:00:19]} 45. Rh1 {[%clk 00:01:29]} {[%emt 00:00:01]}
Ra7 {[%clk 00:01:49]} {[%emt 00:00:02]} 46. Bc1 {[%clk 00:01:19]} {[%emt
00:00:13]} Bf7 {[%clk 00:01:36]} {[%emt 00:00:16]} 47. Bd2 {[%clk 00:01:21]}
Rga8 {[%clk 00:01:37]} {[%emt 00:00:02]} 48. Bc1 {[%clk 00:01:23]} {[%emt
00:00:02]} a5 {[%clk 00:01:38]} {[%emt 00:00:01]} 49. bxa5+ {[%clk 00:01:22]}
{[%emt 00:00:03]} Rxa5 {[%clk 00:01:40]} {[%emt 00:00:01]} 50. Rb1 {[%clk
00:01:14]} {[%emt 00:00:11]} Ra2 {[%clk 00:01:40]} {[%emt 00:00:03]} 51. Bd1
{[%clk 00:01:09]} {[%emt 00:00:09]} R8a4 {[%clk 00:01:32]} {[%emt 00:00:11]} 52.
Rg1 {[%clk 00:01:06]} {[%emt 00:00:05]} Ra1 {[%clk 00:01:20]} {[%emt 00:00:14]}
53. Rxa1 {[%clk 00:01:00]} {[%emt 00:00:10]} Rxa1 {[%clk 00:01:22]} 54. Kd2
{[%clk 00:00:59]} {[%emt 00:00:04]} b4 {[%clk 00:01:23]} {[%emt 00:00:03]} 55.
Bb2 {[%clk 00:00:47]} {[%emt 00:00:14]} Rb1 {[%clk 00:01:24]} {[%emt 00:00:02]}
56. cxb4 {[%clk 00:00:41]} {[%emt 00:00:09]} Rxb2 {[%clk 00:01:25]} {[%emt
00:00:02]} 57. g4 {[%clk 00:00:42]} {[%emt 00:00:02]} fxg4 {[%clk 00:01:10]}
{[%emt 00:00:18]} 58. Rxg4 {[%clk 00:00:44]} Bxh5 {[%clk 00:01:10]} {[%emt
00:00:03]} 59. Rxg7 {[%clk 00:00:46]} {[%emt 00:00:02]} Bxd1 {[%clk 00:01:11]}
{[%emt 00:00:01]} 60. Kxd1 {[%clk 00:00:49]} Nxd4 {[%clk 00:01:12]} {[%emt
00:00:03]} 61. c3 {[%clk 00:00:41]} {[%emt 00:00:10]} Nb5 {[%clk 00:01:11]}
{[%emt 00:00:04]} 62. f5 {[%clk 00:00:40]} {[%emt 00:00:05]} exf5 {[%clk
00:01:08]} {[%emt 00:00:06]} 63. e6 {[%clk 00:00:42]} Nxc3+ {[%clk 00:01:08]}
{[%emt 00:00:03]} 64. Kc1 {[%clk 00:00:45]} Re2 {[%clk 00:01:10]} {[%emt
00:00:02]} 0-1

[Event "7° Rencontres Internationales des Echecs Francophones"]
[Site "PARIS, France"]
[Date "2019.08.10"]
[Round "3.3"]
[White "David, Alberto"]
[Black "Delorme, Alban"]
[Result "1-0"]
[TimeControl "90'+30' + 30seconds/move"]
[WhiteElo "2554"]
[BlackElo "2227"]

1. e4 {[%clk 00:05:04]} c5 {[%clk 00:05:04]} {[%emt 00:00:03]} 2. Nf3 {[%clk
00:05:06]} {[%emt 00:00:02]} d6 {[%clk 00:05:00]} {[%emt 00:00:08]} 3. Bb5+
{[%clk 00:05:07]} {[%emt 00:00:02]} Nc6 {[%clk 00:05:02]} 4. O-O {[%clk
00:05:05]} {[%emt 00:00:04]} Bd7 {[%clk 00:05:04]} {[%emt 00:00:01]} 5. Re1
{[%clk 00:05:07]} {[%emt 00:00:02]} Nf6 {[%clk 00:05:03]} {[%emt 00:00:03]} 6.
h3 {[%clk 00:05:07]} {[%emt 00:00:03]} a6 {[%clk 00:04:56]} {[%emt 00:00:10]} 7.
Bf1 {[%clk 00:05:07]} {[%emt 00:00:03]} g6 {[%clk 00:04:54]} {[%emt 00:00:05]}
8. c3 {[%clk 00:05:08]} {[%emt 00:00:02]} Bg7 {[%clk 00:04:36]} {[%emt
00:00:21]} 9. d4 {[%clk 00:05:10]} cxd4 {[%clk 00:04:27]} {[%emt 00:00:13]} 10.
cxd4 {[%clk 00:05:12]} {[%emt 00:00:02]} d5 {[%clk 00:04:18]} {[%emt 00:00:11]}
11. e5 {[%clk 00:05:07]} {[%emt 00:00:08]} Ne4 {[%clk 00:04:17]} {[%emt
00:00:04]} 12. Nbd2 {[%clk 00:04:49]} {[%emt 00:00:21]} Nxd2 {[%clk 00:03:49]}
{[%emt 00:00:31]} 13. Bxd2 {[%clk 00:04:49]} {[%emt 00:00:02]} O-O {[%clk
00:03:48]} {[%emt 00:00:05]} 14. Bd3 {[%clk 00:04:51]} {[%emt 00:00:02]} Qb6
{[%clk 00:03:19]} {[%emt 00:00:32]} 15. Bc3 {[%clk 00:04:43]} {[%emt 00:00:10]}
Na5 {[%clk 00:02:54]} {[%emt 00:00:29]} 16. Ng5 {[%clk 00:04:15]} {[%emt
00:00:30]} e6 {[%clk 00:02:25]} {[%emt 00:00:32]} 17. h4 {[%clk 00:04:10]}
{[%emt 00:00:08]} Rac8 {[%clk 00:02:14]} {[%emt 00:00:15]} 18. h5 {[%clk
00:04:09]} {[%emt 00:00:03]} Nc4 {[%clk 00:02:13]} {[%emt 00:00:04]} 19. Rb1
{[%clk 00:03:46]} {[%emt 00:00:26]} Qd8 {[%clk 00:02:02]} {[%emt 00:00:14]} 20.
Qg4 {[%clk 00:03:44]} {[%emt 00:00:05]} f5 {[%clk 00:01:33]} {[%emt 00:00:33]}
21. exf6 {[%clk 00:03:41]} {[%emt 00:00:05]} Qxf6 {[%clk 00:01:35]} {[%emt
00:00:01]} 22. Re2 {[%clk 00:03:27]} {[%emt 00:00:17]} Rce8 {[%clk 00:00:55]}
{[%emt 00:00:43]} 23. hxg6 {[%clk 00:03:21]} {[%emt 00:00:10]} hxg6 {[%clk
00:00:54]} {[%emt 00:00:04]} 24. Qh4 {[%clk 00:03:22]} {[%emt 00:00:02]} Rf7
{[%clk 00:00:43]} {[%emt 00:00:14]} 25. Qh7+ {[%clk 00:03:21]} {[%emt
00:00:03]} Kf8 {[%clk 00:00:45]} 26. Bb4+ {[%clk 00:03:19]} {[%emt 00:00:06]}
Rfe7 {[%clk 00:00:40]} {[%emt 00:00:08]} 27. Qxg6 {[%clk 00:02:39]} {[%emt
00:00:43]} Qxd4 {[%clk 00:00:10]} {[%emt 00:00:33]} 28. Qf7# {[%emt 00:00:02]}
1-0

[Event "7° Rencontres Internationales des Echecs Francophones"]
[Site "PARIS, France"]
[Date "2019.08.10"]
[Round "3.9"]
[White "Sochacki, Christophe"]
[Black "Daurelle, Herve"]
[Result "1-0"]
[TimeControl "90'+30' + 30seconds/move"]
[WhiteElo "2443"]
[BlackElo "2179"]

1. b3 {[%clk 00:05:05]} e5 {[%clk 00:05:04]} {[%emt 00:00:03]} 2. Bb2 {[%clk
00:05:07]} Nc6 {[%clk 00:05:06]} {[%emt 00:00:01]} 3. e3 {[%clk 00:05:09]} Nf6
{[%clk 00:05:07]} {[%emt 00:00:03]} 4. Bb5 {[%clk 00:05:11]} Bd6 {[%clk
00:05:08]} {[%emt 00:00:03]} 5. Na3 {[%clk 00:05:13]} e4 {[%clk 00:04:44]}
{[%emt 00:00:26]} 6. Nc4 {[%clk 00:05:06]} {[%emt 00:00:11]} Be7 {[%clk
00:04:41]} {[%emt 00:00:06]} 7. Bxc6 {[%clk 00:05:02]} {[%emt 00:00:07]} dxc6
{[%clk 00:04:32]} {[%emt 00:00:12]} 8. Ne2 {[%clk 00:04:58]} {[%emt 00:00:07]}
Bg4 {[%clk 00:04:19]} {[%emt 00:00:16]} 9. h3 {[%clk 00:04:59]} {[%emt
00:00:02]} Bh5 {[%clk 00:04:21]} 10. d4 {[%clk 00:04:41]} {[%emt 00:00:21]}
Bb4+ {[%clk 00:03:41]} {[%emt 00:00:43]} 11. c3 {[%clk 00:04:43]} {[%emt
00:00:01]} Bd6 {[%clk 00:03:43]} {[%emt 00:00:02]} 12. Nxd6+ cxd6 {[%clk
00:03:44]} 13. c4 {[%clk 00:04:30]} {[%emt 00:00:04]} O-O {[%clk 00:03:32]}
{[%emt 00:00:15]} 14. g4 {[%clk 00:04:16]} {[%emt 00:00:17]} Bg6 {[%clk
00:03:33]} {[%emt 00:00:02]} 15. Nf4 {[%clk 00:04:17]} {[%emt 00:00:02]} d5
{[%clk 00:02:54]} {[%emt 00:00:42]} 16. h4 {[%clk 00:04:13]} {[%emt 00:00:07]}
h5 {[%clk 00:02:55]} {[%emt 00:00:02]} 17. gxh5 {[%emt 00:00:06]} Bf5 {[%emt
00:00:01]} 18. Rg1 {[%clk 00:04:09]} {[%emt 00:00:03]} Kh7 {[%clk 00:02:47]}
{[%emt 00:00:14]} 19. Rg5 {[%clk 00:04:05]} {[%emt 00:00:07]} Qd7 {[%clk
00:02:43]} {[%emt 00:00:07]} 20. Qc2 {[%clk 00:03:33]} {[%emt 00:00:36]} Ng4
{[%clk 00:02:29]} {[%emt 00:00:17]} 21. Ba3 {[%clk 00:02:27]} {[%emt 00:01:09]}
Rh8 {[%clk 00:02:27]} {[%emt 00:00:04]} 22. f3 {[%clk 00:01:48]} {[%emt
00:00:43]} Nxe3 {[%clk 00:02:16]} {[%emt 00:00:13]} 23. Qd2 {[%clk 00:01:40]}
{[%emt 00:00:11]} exf3 {[%clk 00:02:05]} {[%emt 00:00:14]} 24. Kf2 {[%clk
00:01:27]} {[%emt 00:00:16]} Ng4+ {[%clk 00:01:54]} {[%emt 00:00:14]} 25. Kxf3
{[%clk 00:01:25]} {[%emt 00:00:05]} f6 {[%clk 00:01:37]} {[%emt 00:00:20]} 26.
Rg6 {[%clk 00:01:04]} {[%emt 00:00:24]} Bxg6 {[%clk 00:01:32]} {[%emt
00:00:08]} 27. hxg6+ {[%clk 00:01:06]} {[%emt 00:00:01]} Kg8 {[%clk 00:01:28]}
{[%emt 00:00:06]} 28. h5 {[%clk 00:00:51]} {[%emt 00:00:19]} Ne5+ {[%clk
00:01:23]} {[%emt 00:00:08]} 29. dxe5 {[%clk 00:00:38]} {[%emt 00:00:16]} fxe5
{[%clk 00:01:25]} 30. cxd5 {[%clk 00:00:39]} {[%emt 00:00:02]} exf4 {[%clk
00:01:24]} {[%emt 00:00:03]} 31. Rh1 {[%clk 00:00:19]} {[%emt 00:00:24]} Qxd5+
{[%clk 00:01:00]} {[%emt 00:00:27]} 32. Qxd5+ {[%clk 00:00:21]} cxd5 {[%clk
00:01:02]} {[%emt 00:00:01]} 33. Kxf4 {[%clk 00:00:20]} {[%emt 00:00:04]} Re8
{[%clk 00:00:57]} {[%emt 00:00:07]} 34. Bd6 {[%clk 00:00:14]} {[%emt 00:00:09]}
Re6 {[%clk 00:00:35]} {[%emt 00:00:25]} 35. Rc1 {[%clk 00:00:14]} {[%emt
00:00:03]} Re8 {[%clk 00:00:34]} {[%emt 00:00:04]} 36. Kg5 {[%clk 00:00:16]} d4
{[%clk 00:00:27]} {[%emt 00:00:10]} 37. Kg4 {[%clk 00:00:11]} {[%emt 00:00:08]}
d3 {[%clk 00:00:17]} {[%emt 00:00:13]} 38. Rd1 {[%clk 00:00:07]} {[%emt
00:00:07]} Re4+ {[%clk 00:00:12]} {[%emt 00:00:08]} 39. Kg5 {[%clk 00:00:07]}
{[%emt 00:00:03]} Rd4 {[%clk 00:00:04]} {[%emt 00:00:11]} 40. Be5 {[%clk
00:00:08]} {[%emt 00:00:02]} Rd5 {[%emt 00:00:05]} 41. Bd6 {[%emt 00:00:05]}
Rd4 42. Re1 1-0



[ePGN "0.1;DGT LiveChess/2.2.4"]

[Event "7° Rencontres Internationales des Echecs Francophones"]
[Site "PARIS, France"]
[Date "2019.08.10"]
[Round "4.9"]
[White "Prie, Eric"]
[Black "Denjoy, Arnaud"]
[Result "1/2-1/2"]
[TimeControl "90'+30' + 30seconds/move"]
[WhiteElo "2439"]
[BlackElo "2036"]

1. d4 {[%clk 00:05:04]} e6 {[%clk 00:05:05]} {[%emt 00:00:02]} 2. Nf3 {[%clk
00:05:04]} {[%emt 00:00:03]} Nf6 {[%clk 00:05:06]} {[%emt 00:00:02]} 3. Bf4
{[%clk 00:05:04]} {[%emt 00:00:02]} c5 {[%clk 00:05:08]} {[%emt 00:00:02]} 4.
c3 {[%clk 00:05:06]} {[%emt 00:00:01]} Nc6 {[%clk 00:05:09]} {[%emt 00:00:02]}
5. e3 {[%clk 00:05:06]} {[%emt 00:00:03]} d5 {[%clk 00:05:11]} {[%emt
00:00:01]} 6. Nbd2 {[%clk 00:05:02]} {[%emt 00:00:07]} Bd6 {[%clk 00:05:13]}
{[%emt 00:00:01]} 7. Bg3 {[%clk 00:05:03]} {[%emt 00:00:02]} O-O {[%clk
00:05:13]} {[%emt 00:00:02]} 8. Bd3 {[%clk 00:05:01]} {[%emt 00:00:05]} b6
{[%clk 00:05:15]} 9. Qe2 {[%clk 00:05:02]} {[%emt 00:00:02]} Bb7 {[%clk
00:05:14]} {[%emt 00:00:05]} 10. Rd1 {[%clk 00:05:04]} h6 {[%clk 00:05:15]}
{[%emt 00:00:02]} 11. e4 {[%clk 00:04:56]} {[%emt 00:00:11]} Bxg3 {[%clk
00:04:39]} {[%emt 00:00:40]} 12. hxg3 {[%clk 00:04:52]} {[%emt 00:00:06]} cxd4
{[%clk 00:03:59]} {[%emt 00:00:43]} 13. cxd4 {[%clk 00:03:58]} {[%emt
00:00:57]} dxe4 {[%clk 00:03:59]} {[%emt 00:00:04]} 14. Nxe4 {[%clk 00:03:59]}
Nb4 {[%clk 00:03:52]} {[%emt 00:00:11]} 15. Nxf6+ {[%clk 00:03:12]} {[%emt
00:00:49]} Qxf6 {[%clk 00:03:53]} {[%emt 00:00:02]} 16. Be4 {[%clk 00:03:14]}
Bxe4 {[%clk 00:03:42]} {[%emt 00:00:14]} 17. Qxe4 {[%clk 00:03:16]} {[%emt
00:00:02]} Rac8 {[%clk 00:03:33]} {[%emt 00:00:12]} 18. a3 {[%clk 00:03:09]}
{[%emt 00:00:10]} Nd5 {[%clk 00:03:18]} {[%emt 00:00:18]} 19. g4 {[%clk
00:02:54]} {[%emt 00:00:18]} Qf4 {[%clk 00:02:48]} {[%emt 00:00:33]} 20. Qxf4
{[%clk 00:02:52]} {[%emt 00:00:04]} Nxf4 {[%clk 00:02:50]} {[%emt 00:00:02]} 21.
g3 {[%clk 00:02:44]} {[%emt 00:00:11]} Nd5 {[%clk 00:02:45]} {[%emt 00:00:08]}
22. Kd2 {[%clk 00:02:45]} Rc7 {[%clk 00:02:42]} {[%emt 00:00:07]} 23. Rc1
{[%clk 00:02:38]} {[%emt 00:00:10]} Rfc8 {[%clk 00:02:43]} {[%emt 00:00:02]} 24.
Rxc7 {[%clk 00:02:39]} {[%emt 00:00:02]} Rxc7 {[%clk 00:02:45]} {[%emt
00:00:01]} 25. g5 {[%clk 00:02:37]} {[%emt 00:00:05]} hxg5 {[%clk 00:02:47]}
{[%emt 00:00:01]} 26. Nxg5 {[%clk 00:02:39]} b5 {[%clk 00:02:29]} {[%emt
00:00:21]} 27. Ne4 {[%clk 00:02:30]} {[%emt 00:00:12]} Nf6 {[%clk 00:02:16]}
{[%emt 00:00:16]} 28. Nxf6+ gxf6 {[%clk 00:02:18]} 29. Rc1 {[%clk 00:02:26]}
{[%emt 00:00:03]} Rd7 {[%clk 00:00:28]} {[%emt 00:01:53]} 30. Ke3 {[%clk
00:02:27]} {[%emt 00:00:01]} Kf8 {[%clk 00:00:24]} {[%emt 00:00:08]} 31. Rc8+
{[%clk 00:02:21]} {[%emt 00:00:09]} Ke7 {[%clk 00:00:26]} {[%emt 00:00:02]} 32.
Rb8 {[%clk 00:02:18]} {[%emt 00:00:05]} a6 {[%clk 00:00:28]} {[%emt 00:00:02]}
33. g4 {[%clk 00:02:01]} {[%emt 00:00:19]} Rc7 {[%clk 00:00:28]} {[%emt
00:00:02]} 34. Rb6 {[%clk 00:01:51]} {[%emt 00:00:14]} Rc2 {[%clk 00:00:27]}
{[%emt 00:00:04]} 35. Rxa6 {[%clk 00:01:35]} {[%emt 00:00:18]} Rxb2 {[%clk
00:00:30]} {[%emt 00:00:02]} 36. f3 {[%clk 00:01:36]} {[%emt 00:00:02]} b4
{[%clk 00:00:23]} {[%emt 00:00:09]} 37. axb4 {[%clk 00:01:37]} {[%emt
00:00:02]} Rxb4 {[%clk 00:00:24]} {[%emt 00:00:02]} 38. Ke4 {[%clk 00:01:35]}
{[%emt 00:00:04]} Rb5 {[%clk 00:00:25]} {[%emt 00:00:03]} 39. Ra1 {[%emt
00:00:49]} 1/2-1/2

[Event "7° Rencontres Internationales des Echecs Francophones"]
[Site "PARIS, France"]
[Date "2019.08.10"]
[Round "4.1"]
[White "Aloma Vidal, Robert"]
[Black "Moussard, Jules"]
[Result "1/2-1/2"]
[TimeControl "90'+30' + 30seconds/move"]
[WhiteElo "2417"]
[BlackElo "2613"]

1. d4 {[%clk 00:05:05]} d6 {[%clk 00:05:04]} {[%emt 00:00:03]} 2. e4 {[%clk
00:05:06]} {[%emt 00:00:02]} Nf6 {[%clk 00:05:06]} 3. Nc3 {[%clk 00:05:07]}
{[%emt 00:00:02]} g6 {[%clk 00:05:08]} 4. Bg5 {[%clk 00:04:58]} {[%emt
00:00:10]} c6 {[%clk 00:05:10]} {[%emt 00:00:01]} 5. Qd2 {[%clk 00:04:54]}
{[%emt 00:00:10]} Nbd7 {[%clk 00:05:11]} {[%emt 00:00:02]} 6. O-O-O {[%clk
00:04:34]} {[%emt 00:00:23]} Qa5 {[%clk 00:05:09]} {[%emt 00:00:05]} 7. Nf3
{[%clk 00:04:19]} {[%emt 00:00:18]} b5 {[%clk 00:04:49]} {[%emt 00:00:23]} 8.
e5 {[%clk 00:03:11]} {[%emt 00:01:10]} b4 {[%clk 00:04:40]} {[%emt 00:00:13]} 9.
exf6 {[%clk 00:03:12]} {[%emt 00:00:02]} bxc3 {[%clk 00:04:41]} {[%emt
00:00:02]} 10. Qxc3 {[%clk 00:03:13]} Qxc3 {[%clk 00:04:42]} {[%emt 00:00:02]}
11. bxc3 {[%clk 00:03:15]} {[%emt 00:00:02]} Nxf6 {[%clk 00:04:43]} {[%emt
00:00:02]} 12. Bxf6 {[%clk 00:03:12]} {[%emt 00:00:06]} exf6 {[%clk 00:04:45]}
13. d5 {[%clk 00:02:53]} {[%emt 00:00:23]} c5 {[%clk 00:04:33]} {[%emt
00:00:15]} 14. Bb5+ {[%clk 00:02:52]} {[%emt 00:00:04]} Kd8 {[%clk 00:04:30]}
{[%emt 00:00:07]} 15. Rhe1 {[%clk 00:02:06]} {[%emt 00:00:48]} Bh6+ {[%clk
00:04:31]} {[%emt 00:00:02]} 16. Nd2 {[%clk 00:02:08]} Rb8 {[%clk 00:04:29]}
{[%emt 00:00:06]} 17. Bc6 {[%clk 00:02:10]} {[%emt 00:00:02]} f5 {[%clk
00:03:51]} {[%emt 00:00:40]} 18. g3 {[%clk 00:02:05]} {[%emt 00:00:08]} f4
{[%clk 00:03:47]} {[%emt 00:00:06]} 19. Re4 {[%clk 00:01:52]} {[%emt 00:00:16]}
Bb7 {[%clk 00:02:45]} {[%emt 00:01:06]} 20. gxf4 {[%clk 00:01:42]} {[%emt
00:00:13]} Bxc6 {[%clk 00:02:40]} {[%emt 00:00:07]} 21. dxc6 {[%clk 00:01:44]}
Kc7 {[%clk 00:02:43]} 22. Nc4 {[%clk 00:01:42]} {[%emt 00:00:05]} Rhd8 {[%clk
00:02:44]} {[%emt 00:00:02]} 23. Re7+ {[%clk 00:01:36]} {[%emt 00:00:08]} Kxc6
{[%clk 00:02:45]} {[%emt 00:00:02]} 24. Rxf7 {[%clk 00:01:37]} {[%emt
00:00:02]} d5 {[%clk 00:02:08]} {[%emt 00:00:41]} 25. Ne5+ {[%emt 00:00:04]}
Kd6 26. Ng4 {[%clk 00:01:17]} {[%emt 00:00:21]} Bf8 {[%clk 00:02:11]} {[%emt
00:00:03]} 27. Rxh7 {[%clk 00:01:16]} {[%emt 00:00:04]} Ke6 {[%clk 00:01:01]}
{[%emt 00:01:13]} 28. f3 {[%clk 00:01:01]} {[%emt 00:00:18]} d4 {[%clk
00:00:58]} {[%emt 00:00:07]} 29. c4 {[%clk 00:00:57]} {[%emt 00:00:06]} Rb4
{[%clk 00:00:48]} {[%emt 00:00:12]} 30. Re1+ {[%clk 00:00:59]} {[%emt
00:00:02]} Kd6 {[%clk 00:00:51]} 31. Ne5 {[%clk 00:00:55]} {[%emt 00:00:07]}
Rdb8 {[%clk 00:00:50]} {[%emt 00:00:03]} 32. Kd2 {[%clk 00:00:52]} {[%emt
00:00:06]} a5 {[%clk 00:00:34]} {[%emt 00:00:20]} 33. Rd7+ {[%clk 00:00:38]}
{[%emt 00:00:17]} Ke6 {[%clk 00:00:37]} 34. Rd5 {[%clk 00:00:35]} {[%emt
00:00:06]} Rxc4 {[%clk 00:00:36]} {[%emt 00:00:04]} 35. Nxc4+ {[%clk 00:00:28]}
{[%emt 00:00:10]} Kxd5 {[%clk 00:00:38]} 36. Kd3 {[%clk 00:00:29]} {[%emt
00:00:02]} Bd6 {[%clk 00:00:39]} {[%emt 00:00:02]} 37. Nxd6 {[%clk 00:00:26]}
{[%emt 00:00:06]} Kxd6 {[%clk 00:00:41]} 38. Rg1 {[%clk 00:00:28]} {[%emt
00:00:02]} Rh8 {[%clk 00:00:19]} {[%emt 00:00:26]} 39. Rxg6+ {[%clk 00:00:29]}
{[%emt 00:00:01]} Ke7 {[%clk 00:00:21]} 40. Rc6 {[%clk 00:00:25]} {[%emt
00:00:08]} Rh5 {[%clk 00:00:20]} {[%emt 00:00:04]} 41. a4 {[%clk 00:00:27]}
{[%emt 00:00:01]} Kd7 {[%clk 00:00:22]} 42. Ra6 {[%clk 00:00:28]} {[%emt
00:00:02]} Rxh2 {[%clk 00:00:24]} {[%emt 00:00:02]} 43. Rxa5 {[%emt 00:00:02]}
Kc6 {[%clk 00:00:26]} 44. Ra8 {[%clk 00:00:29]} {[%emt 00:00:03]} Rf2 {[%clk
00:00:28]} 45. Rc8+ {[%clk 00:00:30]} {[%emt 00:00:03]} Kd6 {[%clk 00:00:31]}
46. Rd8+ {[%clk 00:00:20]} {[%emt 00:00:12]} Kc6 {[%clk 00:00:31]} {[%emt
00:00:03]} 47. c4 {[%clk 00:00:19]} {[%emt 00:00:04]} dxc3 {[%clk 00:00:24]}
{[%emt 00:00:10]} 48. Kxc3 {[%clk 00:00:14]} {[%emt 00:00:08]} Rxf3+ {[%clk
00:00:26]} {[%emt 00:00:01]} 49. Kc2 {[%clk 00:00:13]} {[%emt 00:00:04]} Rxf4
{[%clk 00:00:28]} {[%emt 00:00:01]} 50. a5 {[%clk 00:00:12]} {[%emt 00:00:04]}
Ra4 {[%clk 00:00:28]} {[%emt 00:00:03]} 51. Ra8 {[%clk 00:00:11]} {[%emt
00:00:04]} Kb5 {[%clk 00:00:30]} 52. Kb3 {[%clk 00:00:10]} {[%emt 00:00:03]}
c4+ {[%clk 00:00:32]} 53. Kc3 {[%clk 00:00:12]} {[%emt 00:00:02]} Ra3+ {[%clk
00:00:35]} 54. Kc2 {[%clk 00:00:14]} Ra2+ {[%clk 00:00:13]} {[%emt 00:00:25]}
55. Kc3 {[%clk 00:00:15]} {[%emt 00:00:01]} Ra3+ {[%clk 00:00:15]} 56. Kc2
{[%clk 00:00:17]} Kb4 {[%clk 00:00:18]} 57. Rb8+ {[%clk 00:00:16]} {[%emt
00:00:05]} Kxa5 {[%clk 00:00:07]} {[%emt 00:00:14]} 58. Ra8+ {[%clk 00:00:18]}
{[%emt 00:00:01]} Kb4 {[%clk 00:00:09]} 59. Rxa3 {[%clk 00:00:19]} {[%emt
00:00:02]} Kxa3 {[%clk 00:00:12]} 60. Kc3 {[%clk 00:00:20]} {[%emt 00:00:02]}
1/2-1/2